fUSD/lending_fUSD_20240521
["ID","MTS","AMOUNT","RATE_DAILY","PERIOD"]
[327661976,1716289853343,-500.0,0.00033205,6]
[327661977,1716289853352,-500.0,0.00033205,6]
[327661978,1716289853361,-951.8,0.00033205,6]
[327661979,1716289853371,-1511.43,0.00033205,6]
[327661980,1716289853380,-500.0,0.00033205,6]
[327661981,1716289853389,-616.33,0.00033205,6]
[327661982,1716289853399,-1039.74,0.00033205,6]
[327661983,1716289853409,-770.72,0.00033205,6]
[327661984,1716289853419,-864.44,0.00033205,6]
[327661985,1716289853428,-500.0,0.00033205,6]
[327661986,1716289853437,-992.16,0.00033205,6]
[327661987,1716289853447,-653.87,0.00033205,6]
[327661988,1716289853456,-500.0,0.00033205,6]
[327661989,1716289853466,-925.7,0.00033205,6]
[327661990,1716289853475,-500.0,0.00033205,6]
[327661991,1716289853484,-500.0,0.00033205,6]
[327661992,1716289853493,-500.0,0.00033205,6]
[327661993,1716289853503,-1958.77,0.00033205,6]
[327661994,1716289853512,-500.0,0.00033205,6]
[327661995,1716289853522,-1401.13,0.00033205,6]
[327661996,1716289853531,-500.0,0.00033205,6]
[327661997,1716289853540,-1181.49,0.00033205,6]
[327661998,1716289853550,-2383.33,0.00033205,6]
[327661999,1716289853559,-500.0,0.00033205,6]
[327662000,1716289853569,-782.67,0.00033205,6]
[327662001,1716289853578,-1181.5,0.00033205,6]
[327662002,1716289853587,-912.52,0.00033205,6]
[327662003,1716289853596,-985.39,0.00033205,6]
[327662004,1716289853605,-1922.42,0.00033205,6]
[327662005,1716289853615,-1591.94,0.00033205,6]
[327662006,1716289853624,-500.0,0.00033205,6]
[327662007,1716289853633,-1316.31,0.00033205,6]
[327662008,1716289853643,-1460.32,0.00033205,6]
[327662009,1716289853653,-500.0,0.00033205,6]
[327662010,1716289853662,-1478.87,0.00033205,6]
[327662011,1716289853671,-1704.84,0.00033205,6]
[327662012,1716289853680,-594.8,0.00033205,6]
[327662013,1716289853690,-554.86,0.00033205,6]
[327662014,1716289853699,-268.44836193,0.00033205,6]
[327662015,1716289853709,-500.0,0.00033205,6]
[327662016,1716289853719,-1209.04,0.00033205,6]
[327662017,1716289853728,-500.0,0.00033205,6]
[327662018,1716289853737,-565.32,0.00033205,6]
[327662019,1716289853746,-1188.87,0.00033205,6]
[327662020,1716289853756,-500.0,0.00033205,6]
[327662021,1716289853765,-5987.89,0.00033205,6]
[327662022,1716289853775,-2098.53,0.00033205,6]
[327662023,1716289853785,-1426.35,0.00033205,6]
[327662024,1716289853795,-500.0,0.00033205,6]
[327662025,1716289853805,-500.0,0.00033205,6]
[327662026,1716289853815,-909.1,0.00033205,6]
[327662027,1716289853824,-2119.96,0.00033205,6]
[327662028,1716289853834,-549.34,0.00033205,6]
[327662029,1716289853843,-473.82895123,0.00033205,6]
[327662030,1716289853852,-3928.51,0.00033205,6]
[327662031,1716289853862,-231.7,0.00033205,6]
[327662032,1716289853871,-500.0,0.00033205,6]
[327662033,1716289853881,-1303.65,0.00033205,6]
[327662034,1716289853891,-752.01,0.00033205,6]
[327662035,1716289853901,-219.42,0.00033205,6]
[327662036,1716289853911,-500.0,0.00033205,6]
[327662037,1716289853921,-572.12,0.00033205,6]
[327662038,1716289853930,-1584.81,0.00033205,6]
[327662039,1716289853939,-1840.98,0.00033205,6]
[327662040,1716289853949,-500.0,0.00033205,6]
[327662041,1716289853958,-500.0,0.00033205,6]
[327662042,1716289853967,-1264.92,0.00033205,6]
[327662043,1716289853977,-1045.68,0.00033205,6]
[327662044,1716289853986,-644.74,0.00033205,6]
[327662045,1716289853996,-500.0,0.00033205,6]
[327662046,1716289854005,-1944.59,0.00033205,6]
[327662047,1716289854015,-12996.96,0.00033205,6]
[327662048,1716289854024,-518.74,0.00033205,6]
[327662049,1716289854033,-500.0,0.00033205,6]
[327662050,1716289854043,-34458.31,0.00033205,6]
[327662051,1716289854053,-2715.62,0.00033205,6]
[327662052,1716289854062,-500.0,0.00033205,6]
[327662053,1716289854071,-500.0,0.00033205,6]
[327662054,1716289854081,-1458.25,0.00033205,6]
[327662055,1716289854090,-1759.69,0.00033205,6]
[327662056,1716289854100,-8935.11,0.00033205,6]
[327662057,1716289854110,-759.67,0.00033205,6]
[327662058,1716289854119,-501.72832799,0.00033205,6]
[327662059,1716289854128,-2909.49,0.00033205,6]
[327662060,1716289854138,-500.0,0.00033205,6]
[327662061,1716289854148,-1053.36,0.00033205,6]
[327662062,1716289854157,-500.0,0.00033205,6]
[327662063,1716289854167,-500.0,0.00033205,6]
[327662064,1716289854176,-1469.45,0.00033205,6]
[327662065,1716289854185,-523.61,0.00033205,6]
[327662066,1716289854195,-5236.06,0.00033205,6]
[327662067,1716289854205,-500.0,0.00033205,6]
[327662068,1716289854214,-500.0,0.00033205,6]
[327662069,1716289854228,-500.0,0.00033205,6]
[327662070,1716289854238,-1682.51,0.00033205,6]
[327662071,1716289854248,-500.0,0.00033205,6]
[327662072,1716289854257,-1448.31,0.00033205,6]
[327662073,1716289854269,-500.0,0.00033205,6]
[327662074,1716289854278,-3733.56,0.00033205,6]
[327662075,1716289854288,-1889.33,0.00033205,6]
[327662076,1716289854298,-1773.66,0.00033205,6]
[327662077,1716289854310,-871.53,0.00033205,6]
[327662078,1716289854320,-1554.05,0.00033205,6]
[327662079,1716289854330,-2474.37,0.00033205,6]
[327662080,1716289854339,-500.0,0.00033205,6]
[327662081,1716289854349,-3109.23,0.00033205,6]
[327662082,1716289854359,-500.0,0.00033205,6]
[327662083,1716289854369,-500.0,0.00033205,6]
[327662084,1716289854379,-500.0,0.00033205,6]
[327662085,1716289854388,-1792.27,0.00033205,6]
[327662086,1716289854398,-1168.19,0.00033205,6]
[327662087,1716289854408,-1947.66,0.00033205,6]
[327662088,1716289854418,-4182.64,0.00033205,6]
[327662089,1716289854428,-3915.85,0.00033205,6]
[327662090,1716289854437,-500.0,0.00033205,6]
[327662091,1716289854447,-827.2,0.00033205,6]
[327662092,1716289854456,-3737.13,0.00033205,6]
[327662093,1716289854465,-2723.66,0.00033205,6]
[327662094,1716289854475,-6711.27,0.00033205,6]
[327662095,1716289854485,-3735.37,0.00033205,6]
[327662096,1716289854494,-385.52904531,0.00033205,6]
[327662097,1716289854504,-500.0,0.00033205,6]
[327662098,1716289854513,-543.14,0.00033205,6]
[327662099,1716289854523,-500.0,0.00033205,6]
[327662100,1716289854532,-1165.62,0.00033205,6]
[327662101,1716289854542,-500.0,0.00033205,6]
[327662102,1716289854552,-1174.0,0.00033205,6]
[327662103,1716289854562,-500.0,0.00033205,6]
[327662104,1716289854572,-1390.83,0.00033205,6]
[327662105,1716289854582,-521.0,0.00033205,6]
[327662106,1716289854592,-3098.28,0.00033205,6]
[327662107,1716289854601,-1339.14,0.00033205,6]
[327662108,1716289854610,-684.1,0.00033205,6]
[327662109,1716289854620,-2708.47,0.00033205,6]
[327662110,1716289854629,-3233.25,0.00033205,6]
[327662111,1716289854639,-708.58,0.00033205,6]
[327662112,1716289854651,-913.19,0.00033205,6]
[327662113,1716289854660,-570.05,0.00033205,6]
[327662114,1716289854671,-2579.9,0.00033205,6]
[327662115,1716289854681,-500.0,0.00033205,6]
[327662116,1716289854691,-854.27,0.00033205,6]
[327662117,1716289854701,-1423.94,0.00033205,6]
[327662118,1716289854710,-3728.95,0.00033205,6]
[327662119,1716289854723,-3353.27,0.00033205,6]
[327662120,1716289854734,-500.0,0.00033205,6]
[327662121,1716289854744,-500.0,0.00033205,6]
[327662122,1716289854754,-2867.3,0.00033205,6]
[327662123,1716289854763,-1534.21,0.00033205,6]
[327662124,1716289854772,-5742.01,0.00033205,6]
[327662125,1716289854782,-4374.84,0.00033205,6]
[327662126,1716289854791,-2490.56,0.00033205,6]
[327662127,1716289855069,-500.0,0.00033205,6]
[327662128,1716289855080,-908.16,0.00033205,6]
[327662129,1716289855090,-6975.59,0.00033205,6]
[327662130,1716289855099,-500.0,0.00033205,6]
[327662131,1716289855109,-2999.45,0.00033205,6]
[327662132,1716289855119,-500.0,0.00033205,6]
[327662133,1716289855127,-746.39,0.00033205,6]
[327662134,1716289855137,-1197.99,0.00033205,6]
[327662135,1716289855149,-4000.0,0.00033205,6]
[327662136,1716289855158,-500.0,0.00033205,6]
[327662137,1716289855168,-12407.4,0.00033205,6]
[327662138,1716289855177,-500.0,0.00033205,6]
[327662139,1716289855186,-42829.36,0.00033205,6]
[327662140,1716289855196,-2550.48,0.00033205,6]
[327662141,1716289855205,-2269.27,0.00033205,6]
[327662142,1716289855214,-166.75119717,0.00033213,2]
[327662143,1716289855226,-176.48403997,0.00033215,2]
[327662144,1716289855238,-151.64625168,0.00033229,7]
[327662145,1716289855247,-215.0,0.00033288,2]
[327662146,1716289855256,-3161.0,0.00033288,2]
[327662147,1716289855267,-150.34933574,0.0003331,7]
[327662148,1716289855276,-500.0,0.00033313,6]
[327662149,1716289855285,-500.0,0.00033313,6]
[327662150,1716289855295,-500.0,0.00033313,6]
[327662151,1716289855306,-500.0,0.00033313,6]
[327662152,1716289855316,-750.84,0.00033313,6]
[327662153,1716289855326,-500.0,0.00033313,6]
[327662154,1716289855335,-500.0,0.00033313,6]
[327662155,1716289855345,-500.0,0.00033313,6]
[327662156,1716289855353,-540.25,0.00033313,6]
[327662157,1716289855363,-500.0,0.00033313,6]
[327662158,1716289855372,-63.94047869,0.00033313,6]
[327662159,1716289855729,-436.05952131,0.00033313,6]
[327662160,1716289855740,-773.06,0.00033313,6]
[327662161,1716289855749,-647.52,0.00033313,6]
[327662162,1716289855760,-545.43,0.00033313,6]
[327662163,1716289855770,-500.0,0.00033313,6]
[327662164,1716289855779,-551.28,0.00033313,6]
[327662165,1716289855788,-500.0,0.00033313,6]
[327662166,1716289855798,-500.0,0.00033313,6]
[327662167,1716289855807,-500.0,0.00033313,6]
[327662168,1716289855816,-500.0,0.00033313,6]
[327662169,1716289855826,-500.0,0.00033313,6]
[327662170,1716289855836,-500.0,0.00033313,6]
[327662171,1716289855846,-705.79,0.00033313,6]
[327662172,1716289855855,-702.31,0.00033313,6]
[327662173,1716289855865,-500.0,0.00033313,6]
[327662174,1716289855874,-500.0,0.00033313,6]
[327662175,1716289855883,-500.0,0.00033313,6]
[327662176,1716289855893,-500.0,0.00033313,6]
[327662177,1716289855904,-500.0,0.00033313,6]
[327662178,1716289855914,-541.85,0.00033313,6]
[327662179,1716289855924,-500.0,0.00033313,6]
[327662180,1716289855934,-500.0,0.00033313,6]
[327662181,1716289855943,-500.0,0.00033313,6]
[327662182,1716289855952,-834.3,0.00033313,6]
[327662183,1716289855962,-500.0,0.00033313,6]
[327662184,1716289855971,-756.94,0.00033313,6]
[327662185,1716289855980,-552.05,0.00033313,6]
[327662186,1716289855990,-500.0,0.00033313,6]
[327662187,1716289856000,-967.49,0.00033313,6]
[327662188,1716289856009,-500.0,0.00033313,6]
[327662189,1716289856019,-945.95,0.00033313,6]
[327662190,1716289856029,-919.43,0.00033313,6]
[327662191,1716289856038,-500.0,0.00033313,6]
[327662192,1716289856047,-500.0,0.00033313,6]
[327662193,1716289856057,-500.0,0.00033313,6]
[327662194,1716289856067,-2149.82,0.00033313,6]
[327662195,1716289856078,-814.93,0.00033313,6]
[327662196,1716289856087,-1100.82,0.00033313,6]
[327662197,1716289856097,-500.0,0.00033313,6]
[327662198,1716289856106,-441.4363437,0.00033313,6]
[327662199,1716289856116,-500.0,0.00033313,6]
[327662200,1716289856125,-500.0,0.00033313,6]
[327662201,1716289856135,-662.16,0.00033313,6]
[327662202,1716289856145,-1799.93,0.00033313,6]
[327662203,1716289856156,-500.0,0.00033313,6]
[327662204,1716289856165,-500.0,0.00033313,6]
[327662205,1716289856176,-500.0,0.00033313,6]
[327662206,1716289856185,-500.0,0.00033313,6]
[327662207,1716289856195,-1405.06,0.00033313,6]
[327662208,1716289856204,-799.85,0.00033313,6]
[327662209,1716289856214,-500.0,0.00033313,6]
[327662210,1716289856226,-500.0,0.00033313,6]
[327662211,1716289856240,-745.28,0.00033313,6]
[327662212,1716289856251,-841.83,0.00033313,6]
[327662213,1716289856264,-1171.85,0.00033313,6]
[327662214,1716289856275,-1300.36,0.00033313,6]
[327662215,1716289856286,-749.7,0.00033313,6]
[327662216,1716289856296,-524.09,0.00033313,6]
[327662217,1716289856307,-868.84,0.00033313,6]
[327662218,1716289856317,-950.55,0.00033313,6]
[327662219,1716289856329,-1154.49,0.00033313,6]
[327662220,1716289856338,-608.39,0.00033313,6]
[327662221,1716289856349,-500.0,0.00033313,6]
[327662222,1716289856358,-551.53,0.00033313,6]
[327662223,1716289856368,-560.82,0.00033313,6]
[327662224,1716289856380,-1111.14,0.00033313,6]
[327662225,1716289856389,-717.37,0.00033313,6]
[327662226,1716289856399,-500.0,0.00033313,6]
[327662227,1716289856408,-500.0,0.00033313,6]
[327662228,1716289856418,-549.44,0.00033313,6]
[327662229,1716289856427,-1884.54,0.00033313,6]
[327662230,1716289856436,-767.4,0.00033313,6]
[327662231,1716289856447,-500.0,0.00033313,6]
[327662232,1716289856456,-500.0,0.00033313,6]
[327662233,1716289856465,-705.12,0.00033313,6]
[327662234,1716289856475,-500.0,0.00033313,6]
[327662235,1716289856484,-623.1,0.00033313,6]
[327662236,1716289856494,-500.0,0.00033313,6]
[327662237,1716289856503,-15450.63,0.00033313,6]
[327662238,1716289856513,-2346.12,0.00033313,6]
[327662239,1716289856522,-467.67,0.00033313,6]
[327662240,1716289856531,-500.0,0.00033313,6]
[327662241,1716289856541,-1704.17,0.00033313,6]
[327662242,1716289856550,-3336.61,0.00033314,6]
[327662243,1716289856559,-2427.75,0.00033314,6]
[327662244,1716289856570,-500.0,0.00033314,6]
[327662245,1716289856579,-11902.44,0.00033314,6]
[327662246,1716289856589,-1646.27,0.00033314,6]
[327662247,1716289856598,-3458.07,0.00033314,6]
[327662248,1716289856607,-3233.79,0.00033314,6]
[327662249,1716289856617,-2303.27,0.00033314,6]
[327662250,1716289856627,-2583.22,0.00033314,6]
[327662251,1716289856636,-6138.86,0.00033314,6]
[327662252,1716289856645,-4278.7,0.00033314,6]
[327662253,1716289856655,-5343.54,0.00033314,6]
[327662254,1716289856664,-500.0,0.00033314,6]
[327662255,1716289856674,-1029.12,0.00033314,6]
[327662256,1716289856684,-500.0,0.00033315,6]
[327662257,1716289856693,-500.0,0.00033315,6]
[327662258,1716289856703,-528.81,0.00033315,6]
[327662259,1716289856712,-500.0,0.00033315,6]
[327662260,1716289856722,-663.21,0.00033315,6]
[327662261,1716289856732,-972.54,0.00033315,6]
[327662262,1716289856741,-500.0,0.00033315,6]
[327662263,1716289856752,-967.88,0.00033315,6]
[327662264,1716289856762,-903.07,0.00033315,6]
[327662265,1716289856771,-500.0,0.00033315,6]
[327662266,1716289856780,-1383.08,0.00033315,6]
[327662267,1716289856789,-545.05,0.00033315,6]
[327662268,1716289856800,-696.29,0.00033315,6]
[327662269,1716289856811,-500.0,0.00033315,6]
[327662270,1716289856820,-613.99,0.00033315,6]
[327662271,1716289856830,-500.0,0.00033315,6]
[327662272,1716289856839,-500.0,0.00033315,6]
[327662274,1716289856848,-812.36,0.00033315,6]
[327662275,1716289856857,-500.0,0.00033315,6]
[327662276,1716289856866,-753.59,0.00033315,6]
[327662277,1716289856875,-571.3,0.00033315,6]
[327662278,1716289856885,-502.16,0.00033315,6]
[327662279,1716289856894,-894.83,0.00033315,6]
[327662280,1716289856904,-517.54,0.00033315,6]
[327662281,1716289856913,-530.75,0.00033315,6]
[327662282,1716289856922,-500.0,0.00033315,6]
[327662283,1716289856931,-1389.48,0.00033315,6]
[327662284,1716289856940,-813.39,0.00033315,6]
[327662285,1716289856949,-500.0,0.00033315,6]
[327662286,1716289856959,-784.97,0.00033315,6]
[327662287,1716289856968,-1280.36,0.00033315,6]
[327662288,1716289856977,-507.36,0.00033315,6]
[327662289,1716289856986,-1205.59,0.00033315,6]
[327662290,1716289856995,-579.21911537,0.00033315,6]
[327662291,1716289857004,-877.95,0.00033315,6]
[327662292,1716289857014,-500.0,0.00033315,6]
[327662293,1716289857024,-949.04,0.00033315,6]
[327662294,1716289857035,-500.0,0.00033315,6]
[327662295,1716289857047,-500.0,0.00033315,6]
[327662296,1716289857057,-936.11,0.00033315,6]
[327662297,1716289857067,-752.84,0.00033315,6]
[327662298,1716289857077,-960.8,0.00033315,6]
[327662299,1716289857087,-500.0,0.00033315,6]
[327662300,1716289857098,-1040.62,0.00033315,6]
[327662301,1716289857108,-500.0,0.00033315,6]
[327662302,1716289857119,-892.76,0.00033315,6]
[327662303,1716289857129,-500.0,0.00033315,6]
[327662304,1716289857139,-832.7,0.00033315,6]
[327662305,1716289857153,-1407.11,0.00033315,6]
[327662306,1716289857162,-872.03,0.00033315,6]
[327662307,1716289857172,-1000.97,0.00033315,6]
[327662308,1716289857182,-500.0,0.00033315,6]
[327662309,1716289857192,-500.0,0.00033315,6]
[327662310,1716289857202,-951.8,0.00033315,6]
[327662311,1716289857212,-1511.43,0.00033315,6]
[327662312,1716289857225,-500.0,0.00033315,6]
[327662313,1716289857235,-616.33,0.00033315,6]
[327662314,1716289857244,-1039.74,0.00033315,6]
[327662315,1716289857254,-770.72,0.00033315,6]
[327662316,1716289857326,-864.44,0.00033315,6]
[327662317,1716289857335,-500.0,0.00033315,6]
[327662318,1716289857346,-992.16,0.00033315,6]
[327662319,1716289857355,-653.87,0.00033315,6]
[327662320,1716289857365,-500.0,0.00033315,6]
[327662321,1716289857375,-925.7,0.00033315,6]
[327662322,1716289857384,-500.0,0.00033315,6]
[327662323,1716289857393,-500.0,0.00033315,6]
[327662324,1716289857403,-500.0,0.00033315,6]
[327662325,1716289857413,-1958.77,0.00033315,6]
[327662326,1716289857422,-500.0,0.00033315,6]
[327662327,1716289857437,-1401.13,0.00033315,6]
[327662328,1716289857446,-500.0,0.00033315,6]
[327662329,1716289857456,-1181.49,0.00033315,6]
[327662330,1716289857465,-2383.33,0.00033315,6]
[327662331,1716289857476,-500.0,0.00033315,6]
[327662332,1716289857486,-782.67,0.00033315,6]
[327662333,1716289857496,-1181.5,0.00033315,6]
[327662334,1716289857506,-912.52,0.00033315,6]
[327662335,1716289857516,-985.39,0.00033315,6]
[327662336,1716289857526,-1922.42,0.00033315,6]
[327662337,1716289857535,-1591.94,0.00033315,6]
[327662338,1716289857545,-500.0,0.00033315,6]
[327662339,1716289857555,-1316.31,0.00033315,6]
[327662340,1716289857564,-1460.32,0.00033315,6]
[327662341,1716289857574,-500.0,0.00033315,6]
[327662342,1716289857583,-1478.87,0.00033315,6]
[327662343,1716289857592,-1704.84,0.00033315,6]
[327662344,1716289857602,-594.8,0.00033315,6]
[327662345,1716289857611,-554.86,0.00033315,6]
[327662346,1716289857620,-500.0,0.00033315,6]
[327662347,1716289857629,-1209.04,0.00033315,6]
[327662348,1716289857640,-500.0,0.00033315,6]
[327662349,1716289857649,-565.32,0.00033315,6]
[327662350,1716289857660,-1188.87,0.00033315,6]
[327662351,1716289857669,-500.0,0.00033315,6]
[327662352,1716289857678,-5987.89,0.00033315,6]
[327662353,1716289857688,-2098.53,0.00033315,6]
[327662354,1716289857697,-1426.35,0.00033315,6]
[327662355,1716289857706,-314.66865142,0.00033315,6]
[327662356,1716289857716,-496.42746704,0.00033315,6]
[327662357,1716289857726,-909.1,0.00033315,6]
[327662358,1716289857735,-2119.96,0.00033315,6]
[327662359,1716289857745,-549.34,0.00033315,6]
[327662360,1716289857754,-3928.51,0.00033315,6]
[327662361,1716289857763,-500.0,0.00033315,6]
[327662362,1716289857773,-1303.65,0.00033315,6]
[327662363,1716289857782,-752.01,0.00033315,6]
[327662364,1716289857791,-500.0,0.00033315,6]
[327662365,1716289857801,-572.12,0.00033315,6]
[327662366,1716289857810,-1584.81,0.00033315,6]
[327662367,1716289857819,-1840.98,0.00033315,6]
[327662368,1716289857829,-500.0,0.00033315,6]
[327662369,1716289857838,-573.19561515,0.00033315,6]
[327662370,1716289857848,-1264.92,0.00033315,6]
[327662371,1716289857857,-1045.68,0.00033315,6]
[327662372,1716289857867,-644.74,0.00033315,6]
[327662373,1716289857876,-500.0,0.00033315,6]
[327662374,1716289857886,-1944.59,0.00033315,6]
[327662375,1716289857895,-12996.96,0.00033315,6]
[327662376,1716289857906,-518.74,0.00033315,6]
[327662377,1716289857915,-500.0,0.00033315,6]
[327662378,1716289857926,-34458.31,0.00033315,6]
[327662379,1716289857935,-2715.62,0.00033315,6]
[327662380,1716289857944,-500.0,0.00033315,6]
[327662381,1716289857954,-500.0,0.00033315,6]
[327662382,1716289857963,-1458.25,0.00033315,6]
[327662383,1716289857973,-1759.69,0.00033315,6]
[327662384,1716289857982,-8935.11,0.00033315,6]
[327662385,1716289857991,-759.67,0.00033315,6]
[327662386,1716289858001,-2909.49,0.00033315,6]
[327662387,1716289858009,-500.0,0.00033315,6]
[327662388,1716289858019,-1053.36,0.00033315,6]
[327662389,1716289858028,-500.0,0.00033315,6]
[327662390,1716289858038,-500.0,0.00033315,6]
[327662391,1716289858047,-1469.45,0.00033315,6]
[327662392,1716289858056,-523.61,0.00033315,6]
[327662393,1716289858066,-5236.06,0.00033315,6]
[327662394,1716289858076,-500.0,0.00033315,6]
[327662395,1716289858085,-500.0,0.00033315,6]
[327662396,1716289858095,-500.0,0.00033315,6]
[327662397,1716289858105,-1682.51,0.00033315,6]
[327662398,1716289858114,-500.0,0.00033315,6]
[327662399,1716289858124,-1448.31,0.00033315,6]
[327662400,1716289858133,-500.0,0.00033315,6]
[327662401,1716289858142,-3733.56,0.00033315,6]
[327662402,1716289858153,-1889.33,0.00033315,6]
[327662403,1716289858162,-1773.66,0.00033315,6]
[327662404,1716289858171,-871.53,0.00033315,6]
[327662405,1716289858182,-1554.05,0.00033315,6]
[327662406,1716289858191,-2474.37,0.00033315,6]
[327662407,1716289858201,-500.0,0.00033315,6]
[327662408,1716289858210,-3109.23,0.00033315,6]
[327662409,1716289858219,-500.0,0.00033315,6]
[327662410,1716289858230,-500.0,0.00033315,6]
[327662411,1716289858239,-500.0,0.00033315,6]
[327662412,1716289858249,-1792.27,0.00033315,6]
[327662413,1716289858258,-1168.19,0.00033315,6]
[327662414,1716289858268,-1947.66,0.00033315,6]
[327662415,1716289858277,-4182.64,0.00033315,6]
[327662416,1716289858286,-3915.85,0.00033315,6]
[327662417,1716289858295,-500.0,0.00033315,6]
[327662418,1716289858305,-827.2,0.00033315,6]
[327662419,1716289858315,-3737.13,0.00033315,6]
[327662420,1716289858324,-2723.66,0.00033315,6]
[327662421,1716289858333,-6711.27,0.00033315,6]
[327662422,1716289858342,-3735.37,0.00033315,6]
[327662423,1716289858351,-500.0,0.00033315,6]
[327662424,1716289858360,-543.14,0.00033315,6]
[327662425,1716289858369,-500.0,0.00033315,6]
[327662426,1716289858379,-1165.62,0.00033315,6]
[327662427,1716289858387,-500.0,0.00033315,6]
[327662428,1716289858397,-1174.0,0.00033315,6]
[327662429,1716289858407,-500.0,0.00033315,6]
[327662430,1716289858416,-1390.83,0.00033315,6]
[327662431,1716289858434,-521.0,0.00033315,6]
[327662432,1716289858443,-3098.28,0.00033315,6]
[327662433,1716289858452,-1339.14,0.00033315,6]
[327662434,1716289858461,-684.1,0.00033315,6]
[327662435,1716289858471,-2708.47,0.00033315,6]
[327662436,1716289858480,-3233.25,0.00033315,6]
[327662437,1716289858489,-708.58,0.00033315,6]
[327662438,1716289858498,-913.19,0.00033315,6]
[327662439,1716289858507,-570.05,0.00033315,6]
[327662440,1716289858516,-2579.9,0.00033315,6]
[327662441,1716289858525,-500.0,0.00033315,6]
[327662442,1716289858535,-854.27,0.00033315,6]
[327662443,1716289858544,-1423.94,0.00033315,6]
[327662444,1716289858553,-3728.95,0.00033315,6]
[327662445,1716289858563,-3353.27,0.00033315,6]
[327662446,1716289858572,-500.0,0.00033315,6]
[327662447,1716289858581,-500.0,0.00033315,6]
[327662448,1716289858590,-2867.3,0.00033315,6]
[327662449,1716289858599,-1534.21,0.00033315,6]
[327662450,1716289858609,-5742.01,0.00033315,6]
[327662451,1716289858618,-4374.84,0.00033315,6]
[327662452,1716289858628,-2490.56,0.00033315,6]
[327662453,1716289858637,-500.0,0.00033315,6]
[327662454,1716289858646,-908.16,0.00033315,6]
[327662455,1716289858656,-6975.59,0.00033315,6]
[327662456,1716289858665,-500.0,0.00033315,6]
[327662457,1716289858675,-2999.45,0.00033315,6]
[327662458,1716289858684,-500.0,0.00033315,6]
[327662459,1716289858693,-746.39,0.00033315,6]
[327662460,1716289858702,-1197.99,0.00033315,6]
[327662461,1716289858711,-4000.0,0.00033315,6]
[327662462,1716289858721,-500.0,0.00033315,6]
[327662463,1716289858730,-12407.4,0.00033315,6]
[327662464,1716289858739,-500.0,0.00033315,6]
[327662465,1716289858748,-42829.36,0.00033315,6]
[327662466,1716289858758,-2550.48,0.00033315,6]
[327662467,1716289858767,-2269.27,0.00033315,6]
[327662468,1716289858776,-1327.12126088,0.00033343,5]
[327662469,1716289858785,-6309.16412739,0.00033359,2]
[327662470,1716289858794,-458.96749872,0.00033423,6]
[327662471,1716289858803,-500.0,0.00033423,6]
[327662472,1716289858813,-500.0,0.00033423,6]
[327662473,1716289858822,-500.0,0.00033423,6]
[327662474,1716289858831,-750.84,0.00033423,6]
[327662475,1716289858840,-500.0,0.00033423,6]
[327662476,1716289858849,-500.0,0.00033423,6]